Workbook

Sheet 收盤行情
A1: 報價日期 : 2009/7/6下午 02:00:00
A3: 代號 | B3: 名稱 | C3: 漲跌 | E3: 收盤 | F3: 開盤 | G3: 最高 | H3: 最低 | I3: 總量
A4: 15 | B4: 富 邦 | C4: ▼ | D4: -0.02 | E4: 6.34 | F4: 6.37 | G4: 6.4 | H4: 6.3 | I4: 606
A5: 50 | B5: 台灣50 | C5: ▼ | D5: -0.11 | E5: 45.69 | F5: 45.8 | G5: 45.9 | H5: 45.36 | I5: 10655
A6: 51 | B6: 中100 | C6: ▲ | D6: 0.29 | E6: 25.24 | F6: 25.05 | G6: 25.4 | H6: 25 | I6: 167
A7: 52 | B7: 富邦IT | C7: ▲ | D7: 0.11 | E7: 28.12 | F7: 28.01 | G7: 28.12 | H7: 28.01 | I7: 10
A8: 53 | B8: 寶電子 | C8: ▼ | D8: -0.08 | E8: 20.36 | F8: 20.5 | G8: 20.5 | H8: 20.31 | I8: 80
A9: 54 | B9: 台商50 | C9: ▼ | D9: -0.03 | E9: 16.51 | F9: 16.75 | G9: 16.75 | H9: 16.33 | I9: 59
A10: 55 | B10: 寶金融 | C10: ▼ | D10: -0.13 | E10: 11.76 | F10: 11.88 | G10: 11.89 | H10: 11.61 | I10: 2858
A11: 56 | B11: 高股息 | C11: ▲ | D11: 0.01 | E11: 20.11 | F11: 20.1 | G11: 20.25 | H11: 20 | I11: 467
A12: 57 | B12: FB摩台 | C12: ▼ | D12: -0.03 | E12: 24.47 | F12: 24.45 | G12: 24.47 | H12: 24.41 | I12: 181
A13: 58 | B13: FB發達 | C13: ▼ | D13: -0.4 | E13: 24.81 | F13: 24.81 | G13: 24.81 | H13: 24.81 | I13: 2
A14: 59 | B14: FB金融 | C14: ▼ | D14: -0.17 | E14: 24.27 | F14: 24.44 | G14: 24.44 | H14: 24.27 | I14: 38
A15: 60 | B15: 新台灣 | C15: ▼ | D15: -0.1 | E15: 22.6 | F15: 22.5 | G15: 22.6 | H15: 22.48 | I15: 114
A16: 1000 | B16: 加 權 | C16: ▼ | D16: -15.49 | E16: 6649.91 | F16: 6691.02 | G16: 6693.44 | H16: 6615.9 | I16: 3909942
A17: 1001 | B17: 不含金 | C17: ▼ | D17: -5.06 | E17: 5551.59 | F17: 5577.82 | G17: 5581.98 | H17: 5524.77 | I17: 3909942
A18: 1002 | B18: 水泥類 | C18: ▲ | D18: 2.82 | E18: 432.4 | F18: 431.3 | G18: 435.53 | H18: 427.89 | I18: 3909942
A19: 1003 | B19: 食品類 | C19: ▲ | D19: 0.02 | E19: 638.67 | F19: 642.19 | G19: 645.66 | H19: 634.9 | I19: 3909942
A20: 1004 | B20: 塑化類 | C20: ▼ | D20: -0.55 | E20: 533.69 | F20: 535.8 | G20: 536.05 | H20: 530.04 | I20: 3909942
A21: 1005 | B21: 紡織類 | C21: ▲ | D21: 4.98 | E21: 353.86 | F21: 351.71 | G21: 364.55 | H21: 349.02 | I21: 3909942
A22: 1006 | B22: 機電類 | C22: ▼ | D22: -4.62 | E22: 1459.73 | F22: 1469.51 | G22: 1470.16 | H22: 1453.32 | I22: 3909942
A23: 1007 | B23: 造紙類 | C23: ▲ | D23: 2.88 | E23: 176.83 | F23: 175.05 | G23: 179.19 | H23: 174.44 | I23: 3909942
A24: 1008 | B24: 營建類 | C24: ▲ | D24: 4.83 | E24: 292.91 | F24: 292 | G24: 297.42 | H24: 289.64 | I24: 3909942
A25: 1009 | B25: 金融類 | C25: ▼ | D25: -8.79 | E25: 822.85 | F25: 835 | G25: 835 | H25: 816.33 | I25: 3909942
A26: 1010 | B26: 不含電 | C26: ▼ | D26: -9.921 | E26: 9597.819 | F26: 9648.13 | G26: 9652.529 | H26: 9538.8 | I26: 3909942
A27: 1011 | B27: 水 泥 | C27: ▲ | D27: 1 | E27: 110.05 | F27: 109.52 | G27: 110.88 | H27: 108.73 | I27: 33893
A28: 1012 | B28: 食 品 | C28: ▲ | D28: 0.02 | E28: 638.67 | F28: 642.19 | G28: 645.66 | H28: 634.9 | I28: 93341
A29: 1013 | B29: 塑 膠 | C29: ▼ | D29: -1.6 | E29: 146.68 | F29: 148.39 | G29: 148.39 | H29: 145.76 | I29: 86834
A30: 1014 | B30: 紡 織 | C30: ▲ | D30: 4.98 | E30: 353.86 | F30: 351.71 | G30: 364.55 | H30: 349.02 | I30: 123254
A31: 1015 | B31: 電 機 | C31: ▲ | D31: 1.05 | E31: 65.66 | F31: 64.77 | G31: 65.8 | H31: 64.41 | I31: 72942
A32: 1016 | B32: 電 器 | C32: ▲ | D32: 0.01 | E32: 41.58 | F32: 41.87 | G32: 41.93 | H32: 41.19 | I32: 44100
A33: 1017 | B33: 化生醫 | C33: ▲ | D33: 1.87 | E33: 91.67 | F33: 90.62 | G33: 91.8 | H33: 89.82 | I33: 124463
A34: 1018 | B34: 玻 璃 | C34: ▼ | D34: -0.26 | E34: 43.73 | F34: 44.11 | G34: 44.3 | H34: 43.39 | I34: 3704
A35: 1019 | B35: 造 紙 | C35: ▲ | D35: 2.88 | E35: 176.83 | F35: 175.05 | G35: 179.19 | H35: 174.44 | I35: 25788
A36: 1020 | B36: 鋼 鐵 | C36: ▼ | D36: -0.28 | E36: 97.17 | F36: 97.72 | G36: 97.73 | H36: 96.58 | I36: 98079
A37: 1021 | B37: 橡 膠 | C37: ▲ | D37: 3.13 | E37: 179.67 | F37: 177.4 | G37: 181.72 | H37: 176.6 | I37: 61819
A38: 1022 | B38: 汽 車 | C38: ▲ | D38: 3.63 | E38: 112.54 | F38: 109.65 | G38: 112.69 | H38: 109.44 | I38: 128779
A39: 1023 | B39: 電 子 | C39: ▼ | D39: -0.92 | E39: 261.51 | F39: 263.35 | G39: 263.46 | H39: 260.4 | I39: 1434006
A40: 1025 | B40: 營 造 | C40: ▲ | D40: 4.83 | E40: 292.91 | F40: 292 | G40: 297.42 | H40: 289.64 | I40: 303056
A41: 1026 | B41: 運 輸 | C41: ▲ | D41: 1.45 | E41: 88.18 | F41: 87.1 | G41: 88.87 | H41: 86.55 | I41: 165661
A42: 1027 | B42: 觀 光 | C42: ▼ | D42: -0.58 | E42: 132.49 | F42: 134.07 | G42: 134.61 | H42: 132.45 | I42: 11906
A43: 1028 | B43: 金 融 | C43: ▼ | D43: -8.79 | E43: 822.85 | F43: 835 | G43: 835 | H43: 816.33 | I43: 613548
A44: 1029 | B44: 百 貨 | C44: ▲ | D44: 2.09 | E44: 125.41 | F44: 123.56 | G44: 125.86 | H44: 123.1 | I44: 76924
A45: 1099 | B45: 其 他 | C45: ▲ | D45: 0.99 | E45: 118.09 | F45: 117.74 | G45: 118.51 | H45: 116.97 | I45: 84374
A46: 1101 | B46: 台 泥 | C46: ▲ | D46: 0.2 | E46: 32.2 | F46: 32 | G46: 32.65 | H46: 31.9 | I46: 10155
A47: 1102 | B47: 亞 泥 | C47: ▲ | D47: 0.25 | E47: 35 | F47: 34.8 | G47: 35.35 | H47: 34.55 | I47: 17211
A48: 1103 | B48: 嘉 泥 | C48: ▲ | D48: 0.65 | E48: 16.1 | F48: 15.5 | G48: 16.2 | H48: 15.5 | I48: 2943
A49: 1104 | B49: 環 泥 | D49: 0 | E49: 15 | F49: 15.1 | G49: 15.2 | H49: 14.9 | I49: 824
A50: 1107 | B50: 建 台 | C50: ▼ | D50: -0.06 | E50: 1.12 | F50: 1.17 | G50: 1.17 | H50: 1.12 | I50: 105
A51: 1108 | B51: 幸 福 | C51: ▲ | D51: 0.15 | E51: 7.26 | F51: 7.1 | G51: 7.28 | H51: 7.1 | I51: 630
A52: 1109 | B52: 信 大 | D52: 0 | E52: 9.4 | F52: 9.4 | G52: 9.46 | H52: 9.39 | I52: 91
A53: 1110 | B53: 東 泥 | C53: ▲ | D53: 0.5 | E53: 12.4 | F53: 12 | G53: 12.6 | H53: 11.9 | I53: 2039
A54: 1201 | B54: 味 全 | C54: ▲ | D54: 0.35 | E54: 43.35 | F54: 43 | G54: 44.3 | H54: 42.5 | I54: 19723
A55: 1203 | B55: 味 王 | C55: ▲ | D55: 0.65 | E55: 27.5 | F55: 27 | G55: 27.95 | H55: 26.5 | I55: 6165
A56: 1210 | B56: 大 成 | C56: ▼ | D56: -0.4 | E56: 37.6 | F56: 38.05 | G56: 38.2 | H56: 37.6 | I56: 5696
A57: 1213 | B57: 大 飲 | C57: ▲ | D57: 0.12 | E57: 9 | F57: 8.88 | G57: 9.11 | H57: 8.78 | I57: 68
A58: 1215 | B58: 卜 蜂 | C58: ▲ | D58: 0.25 | E58: 17.6 | F58: 17.45 | G58: 17.6 | H58: 17.2 | I58: 3379
A59: 1216 | B59: 統 一 | C59: ▼ | D59: -0.2 | E59: 35.7 | F59: 36.1 | G59: 36.35 | H59: 35.55 | I59: 17354
A60: 1217 | B60: 愛之味 | C60: ▲ | D60: 0.05 | E60: 11.95 | F60: 12 | G60: 12.15 | H60: 11.8 | I60: 14495
A61: 1218 | B61: 泰 山 | C61: ▲ | D61: 0.05 | E61: 12.5 | F61: 12.5 | G61: 12.8 | H61: 12.2 | I61: 7675
A62: 1219 | B62: 福 壽 | C62: ▼ | D62: -0.15 | E62: 11.55 | F62: 11.5 | G62: 11.7 | H62: 11.45 | I62: 1296
A63: 1220 | B63: 台 榮 | C63: ▲ | D63: 0.02 | E63: 6.2 | F63: 6.24 | G63: 6.24 | H63: 6.14 | I63: 66
A64: 1225 | B64: 福懋油 | C64: ▼ | D64: -0.35 | E64: 13.4 | F64: 13.75 | G64: 13.75 | H64: 13.35 | I64: 2563
A65: 1227 | B65: 佳 格 | C65: ▲ | D65: 0.1 | E65: 29.8 | F65: 30 | G65: 30 | H65: 29.65 | I65: 783
A66: 1229 | B66: 聯 華 | C66: ▲ | D66: 0.35 | E66: 15.4 | F66: 15.15 | G66: 15.7 | H66: 15.1 | I66: 4502
A67: 1231 | B67: 聯華食 | C67: ▲ | D67: 0.05 | E67: 12.25 | F67: 12.1 | G67: 12.35 | H67: 12.1 | I67: 142
A68: 1232 | B68: 大統益 | C68: ▲ | D68: 0.2 | E68: 36.8 | F68: 36.5 | G68: 37 | H68: 36.5 | I68: 211
A69: 1233 | B69: 天 仁 | C69: ▼ | D69: -0.35 | E69: 34.75 | F69: 35.1 | G69: 35.45 | H69: 34.65 | I69: 128
A70: 1234 | B70: 黑 松 | C70: ▲ | D70: 0.3 | E70: 17.3 | F70: 17.1 | G70: 17.45 | H70: 16.8 | I70: 6951
A71: 1235 | B71: 興 泰 | D71: 0 | E71: 34.4 | F71: 33.4 | G71: 34.4 | H71: 33.4 | I71: 11
A72: 1236 | B72: 宏 亞 | C72: ▲ | D72: 0.05 | E72: 16.6 | F72: 16.4 | G72: 16.65 | H72: 16.4 | I72: 12
A73: 1301 | B73: 臺 塑 | C73: ▼ | D73: -0.4 | E73: 58.6 | F73: 59.2 | G73: 59.2 | H73: 58 | I73: 7853
A74: 1303 | B74: 南 亞 | C74: ▼ | D74: -0.65 | E74: 42.7 | F74: 43 | G74: 43.35 | H74: 42.4 | I74: 3785
A75: 1304 | B75: 臺 聚 | D75: 0 | E75: 14.8 | F75: 14.95 | G75: 14.95 | H75: 14.7 | I75: 3466
A76: 1305 | B76: 華 夏 | C76: ▼ | D76: -0.05 | E76: 11.95 | F76: 12 | G76: 12 | H76: 11.75 | I76: 2902
A77: 1307 | B77: 三 芳 | D77: 0 | E77: 27.9 | F77: 27.9 | G77: 27.95 | H77: 27.6 | I77: 104
A78: 1308 | B78: 亞 聚 | C78: ▼ | D78: -0.45 | E78: 20 | F78: 20.45 | G78: 20.5 | H78: 19.85 | I78: 3899
A79: 1309 | B79: 臺達化 | C79: ▼ | D79: -0.06 | E79: 8.08 | F79: 8.14 | G79: 8.15 | H79: 8.01 | I79: 854
A80: 1310 | B80: 台 苯 | D80: 0 | E80: 11.75 | F80: 11.9 | G80: 11.9 | H80: 11.65 | I80: 1707
A81: 1312 | B81: 國 喬 | C81: ▼ | D81: -0.05 | E81: 10.35 | F81: 10.4 | G81: 10.5 | H81: 10.25 | I81: 8023
A82: 1313 | B82: 聯 成 | C82: ▼ | D82: -0.1 | E82: 13.75 | F82: 13.9 | G82: 14 | H82: 13.65 | I82: 2291
A83: 1314 | B83: 中石化 | C83: ▲ | D83: 0.3 | E83: 10.6 | F83: 10.5 | G83: 10.75 | H83: 10.4 | I83: 38312
A84: 1315 | B84: 達 新 | C84: ▲ | D84: 0.2 | E84: 22.2 | F84: 22 | G84: 22.8 | H84: 22 | I84: 535
A85: 1316 | B85: 上 曜 | C85: ▲ | D85: 0.29 | E85: 5.97 | F85: 5.68 | G85: 5.98 | H85: 5.68 | I85: 47
A86: 1319 | B86: 東 陽 | C86: ▼ | D86: -0.2 | E86: 32.6 | F86: 32.8 | G86: 33 | H86: 31.75 | I86: 3022
A87: 1321 | B87: 大 洋 | C87: ▲ | D87: 1 | E87: 22.5 | F87: 21.8 | G87: 23 | H87: 21.65 | I87: 3699
A88: 1323 | B88: 永 裕 | C88: ▲ | D88: 0.1 | E88: 11.7 | F88: 11.6 | G88: 11.9 | H88: 11.5 | I88: 237
A89: 1324 | B89: 地 球 | D89: 0 | E89: 12 | F89: 12.05 | G89: 12.4 | H89: 11.7 | I89: 111
A90: 1325 | B90: 恆 大 | C90: ▲ | D90: 0.8 | E90: 20.3 | F90: 19.7 | G90: 20.3 | H90: 19.5 | I90: 1870
A91: 1326 | B91: 臺 化 | C91: ▼ | D91: -0.85 | E91: 49.35 | F91: 50 | G91: 50 | H91: 49.1 | I91: 2089
A92: 1333 | B92: 恩得利 | C92: ▲ | D92: 0.09 | E92: 3.99 | F92: 3.95 | G92: 3.99 | H92: 3.9 | I92: 114
A93: 1336 | B93: 台 翰 | C93: ▼ | D93: -0.25 | E93: 16.2 | F93: 16.3 | G93: 16.35 | H93: 16.15 | I93: 22
A94: 1402 | B94: 遠 紡 | C94: ▲ | D94: 0.3 | E94: 39.5 | F94: 39.4 | G94: 41.8 | H94: 39 | I94: 28305
A95: 1409 | B95: 新 纖 | C95: ▲ | D95: 0.07 | E95: 8.78 | F95: 8.73 | G95: 9.1 | H95: 8.73 | I95: 10762
A96: 1410 | B96: 南 染 | C96: ▲ | D96: 0.9 | E96: 14 | F96: 13.15 | G96: 14 | H96: 13.1 | I96: 1968
A97: 1413 | B97: 宏 洲 | C97: ▲ | D97: 0.03 | E97: 2.22 | F97: 2.33 | G97: 2.33 | H97: 2.14 | I97: 3897
A98: 1414 | B98: 東 和 | C98: ▲ | D98: 0.08 | E98: 5.01 | F98: 4.9 | G98: 5.16 | H98: 4.9 | I98: 2151
A99: 1416 | B99: 廣 豐 | C99: ▲ | D99: 0.41 | E99: 7.4 | F99: 7.09 | G99: 7.4 | H99: 7 | I99: 5141
A100: 1417 | B100: 嘉 裕 | C100: ▲ | D100: 0.16 | E100: 6.41 | F100: 6.24 | G100: 6.54 | H100: 6.19 | I100: 8222
A101: 1418 | B101: 東 華 | C101: ▼ | D101: -0.04 | E101: 4.2 | F101: 4.2 | G101: 4.29 | H101: 4.18 | I101: 309
A102: 1419 | B102: 新 紡 | C102: ▲ | D102: 2.9 | E102: 44.8 | F102: 44.75 | G102: 44.8 | H102: 43.5 | I102: 15147
A103: 1423 | B103: 利 華 | C103: ▲ | D103: 0.08 | E103: 5.51 | F103: 5.4 | G103: 5.55 | H103: 5.33 | I103: 505
A104: 1432 | B104: 大魯閣 | C104: ▲ | D104: 0.29 | E104: 4.55 | F104: 3.97 | G104: 4.55 | H104: 3.97 | I104: 3
A105: 1434 | B105: 福 懋 | C105: ▼ | D105: -0.05 | E105: 22.7 | F105: 23 | G105: 23 | H105: 22.5 | I105: 771
A106: 1435 | B106: 中 福 | C106: ▲ | D106: 0.03 | E106: 2.86 | F106: 2.8 | G106: 2.87 | H106: 2.76 | I106: 153
A107: 1436 | B107: 福 益 | C107: ▲ | D107: 0.04 | E107: 8.09 | F107: 7.91 | G107: 8.09 | H107: 7.91 | I107: 134
A108: 1437 | B108: 勤 益 | C108: ▲ | D108: 0.3 | E108: 17.1 | F108: 17.3 | G108: 17.5 | H108: 17 | I108: 4257
A109: 1438 | B109: 裕 豐 | C109: ▼ | D109: -1 | E109: 0 | F109: 0 | G109: 0 | H109: 0 | I109: 0
A110: 1439 | B110: 中 和 | C110: ▼ | D110: -0.2 | E110: 15.2 | F110: 15.4 | G110: 15.6 | H110: 15.2 | I110: 107
A111: 1440 | B111: 南 紡 | C111: ▲ | D111: 0.75 | E111: 11.95 | F111: 11.2 | G111: 11.95 | H111: 11.2 | I111: 29512
A112: 1441 | B112: 大 東 | C112: ▲ | D112: 0.43 | E112: 6.63 | F112: 6.19 | G112: 6.63 | H112: 6.13 | I112: 1924
A113: 1442 | B113: 名 軒 | C113: ▲ | D113: 0.45 | E113: 16.1 | F113: 15.75 | G113: 16.25 | H113: 15.7 | I113: 1870
A114: 1443 | B114: 立 益 | C114: ▲ | D114: 0.08 | E114: 2.5 | F114: 2.42 | G114: 2.5 | H114: 2.37 | I114: 242
A115: 1444 | B115: 力 麗 | C115: ▲ | D115: 0.11 | E115: 5.23 | F115: 5.2 | G115: 5.27 | H115: 5.16 | I115: 1819
A116: 1445 | B116: 大 宇 | C116: ▲ | D116: 0.02 | E116: 5.88 | F116: 5.94 | G116: 5.94 | H116: 5.8 | I116: 34
A117: 1446 | B117: 宏 和 | C117: ▼ | D117: -0.04 | E117: 8.01 | F117: 8.05 | G117: 8.16 | H117: 8.01 | I117: 84
A118: 1447 | B118: 力 鵬 | C118: ▲ | D118: 0.39 | E118: 6.34 | F118: 6.36 | G118: 6.36 | H118: 6.25 | I118: 5161
A119: 1449 | B119: 佳 和 | C119: ▼ | D119: -0.01 | E119: 1.76 | F119: 1.75 | G119: 1.77 | H119: 1.7 | I119: 751
A120: 1451 | B120: 年 興 | D120: 0 | E120: 11.5 | F120: 11.4 | G120: 11.55 | H120: 11.35 | I120: 1491
A121: 1452 | B121: 宏 益 | C121: ▲ | D121: 0.03 | E121: 6.06 | F121: 6.05 | G121: 6.08 | H121: 5.95 | I121: 86
A122: 1453 | B122: 大 將 | C122: ▼ | D122: -0.15 | E122: 7.32 | F122: 7.55 | G122: 7.55 | H122: 7.32 | I122: 52
A123: 1454 | B123: 台 富 | C123: ▲ | D123: 0.02 | E123: 5.65 | F123: 5.78 | G123: 5.78 | H123: 5.59 | I123: 50
A124: 1455 | B124: 集 盛 | C124: ▲ | D124: 0.07 | E124: 5.21 | F124: 5.13 | G124: 5.26 | H124: 5.13 | I124: 963
A125: 1456 | B125: 怡 華 | C125: ▼ | D125: -0.03 | E125: 1.14 | F125: 1.14 | G125: 1.17 | H125: 1.09 | I125: 164
A126: 1457 | B126: 宜 進 | C126: ▲ | D126: 0.08 | E126: 4.36 | F126: 4.5 | G126: 4.5 | H126: 4.35 | I126: 499
A127: 1459 | B127: 聯 發 | C127: ▲ | D127: 0.32 | E127: 7.5 | F127: 7.3 | G127: 7.5 | H127: 7.22 | I127: 154
A128: 1460 | B128: 宏 遠 | C128: ▲ | D128: 0.08 | E128: 5.38 | F128: 5.32 | G128: 5.39 | H128: 5.18 | I128: 326
A129: 1463 | B129: 強 盛 | C129: ▲ | D129: 0.12 | E129: 5.31 | F129: 5.28 | G129: 5.54 | H129: 5.25 | I129: 107
A130: 1464 | B130: 得 力 | C130: ▲ | D130: 0.04 | E130: 5.19 | F130: 5.03 | G130: 5.19 | H130: 5.01 | I130: 5
A131: 1465 | B131: 偉 全 | C131: ▼ | D131: -0.06 | E131: 9.39 | F131: 9.5 | G131: 9.5 | H131: 9.39 | I131: 15
A132: 1466 | B132: 聚 隆 | C132: ▲ | D132: 0.05 | E132: 3.53 | F132: 3.51 | G132: 3.62 | H132: 3.51 | I132: 90
A133: 1467 | B133: 南 緯 | C133: ▲ | D133: 0.03 | E133: 6.05 | F133: 6.09 | G133: 6.09 | H133: 6 | I133: 118
A134: 1468 | B134: 昶 和 | D134: 0 | E134: 11.15 | F134: 11.15 | G134: 11.25 | H134: 11.1 | I134: 74
A135: 1469 | B135: 理 隆 | C135: ▼ | D135: -0.4 | E135: 8.86 | F135: 8.62 | G135: 8.86 | H135: 8.62 | I135: 13
A136: 1470 | B136: 大統染 | D136: 0 | E136: 6.11 | F136: 6.11 | G136: 6.12 | H136: 6.11 | I136: 8
A137: 1471 | B137: 首 利 | D137: 0 | E137: 15.75 | F137: 15.75 | G137: 15.8 | H137: 15.55 | I137: 598
A138: 1472 | B138: 三洋纖 | D138: 0 | E138: 2.83 | F138: 2.87 | G138: 2.87 | H138: 2.79 | I138: 214
A139: 1473 | B139: 台 南 | C139: ▲ | D139: 0.1 | E139: 23.05 | F139: 22.9 | G139: 23.1 | H139: 22.8 | I139: 239
A140: 1474 | B140: 弘 裕 | C140: ▲ | D140: 0.01 | E140: 5.07 | F140: 5.03 | G140: 5.07 | H140: 4.91 | I140: 66
A141: 1475 | B141: 本 盟 | C141: ▲ | D141: 0.15 | E141: 5.94 | F141: 6 | G141: 6 | H141: 5.94 | I141: 2
A142: 1476 | B142: 儒 鴻 | C142: ▲ | D142: 0.1 | E142: 14.75 | F142: 14.9 | G142: 14.9 | H142: 14.7 | I142: 124
A143: 1477 | B143: 聚 陽 | C143: ▲ | D143: 1.5 | E143: 55.3 | F143: 53.8 | G143: 56 | H143: 53.5 | I143: 843
A144: 1503 | B144: 士 電 | C144: ▲ | D144: 1.35 | E144: 40.95 | F144: 39.95 | G144: 41.2 | H144: 39.9 | I144: 12605
A145: 1504 | B145: 東 元 | C145: ▲ | D145: 0.15 | E145: 13.75 | F145: 13.7 | G145: 13.9 | H145: 13.45 | I145: 7659
A146: 1506 | B146: 正 道 | D146: 0 | E146: 14.5 | F146: 14.25 | G146: 14.5 | H146: 14.25 | I146: 45
A147: 1507 | B147: 永 大 | C147: ▲ | D147: 1.05 | E147: 19.4 | F147: 18.5 | G147: 19.6 | H147: 18.4 | I147: 12060
A148: 1512 | B148: 瑞 利 | C148: ▲ | D148: 0.25 | E148: 8.7 | F148: 8.45 | G148: 8.78 | H148: 8.35 | I148: 137
A149: 1513 | B149: 中興電 | C149: ▲ | D149: 0.15 | E149: 16.35 | F149: 16.45 | G149: 16.45 | H149: 16.2 | I149: 4824
A150: 1514 | B150: 亞 力 | C150: ▼ | D150: -0.03 | E150: 6.41 | F150: 6.4 | G150: 6.41 | H150: 6.32 | I150: 277
A151: 1515 | B151: 力 山 | C151: ▲ | D151: 0.1 | E151: 6.14 | F151: 6.05 | G151: 6.14 | H151: 5.93 | I151: 352
A152: 1516 | B152: 川 飛 | C152: ▼ | D152: -0.45 | E152: 13.1 | F152: 13.55 | G152: 13.6 | H152: 13.1 | I152: 2777
A153: 1517 | B153: 利 奇 | C153: ▲ | D153: 0.1 | E153: 10.2 | F153: 10.25 | G153: 10.3 | H153: 10.1 | I153: 762
A154: 1519 | B154: 華 城 | C154: ▼ | D154: -0.1 | E154: 32.45 | F154: 32.9 | G154: 32.9 | H154: 32.3 | I154: 590
A155: 1521 | B155: 大 億 | C155: ▲ | D155: 0.85 | E155: 21 | F155: 20.45 | G155: 21 | H155: 20.4 | I155: 345
A156: 1522 | B156: 堤維西 | C156: ▲ | D156: 1.35 | E156: 20.65 | F156: 19.45 | G156: 20.65 | H156: 19.4 | I156: 5897
A157: 1523 | B157: 開 億 | C157: ▼ | D157: -0.05 | E157: 18 | F157: 18.1 | G157: 18.2 | H157: 17.7 | I157: 734
A158: 1524 | B158: 耿 鼎 | C158: ▲ | D158: 0.13 | E158: 8.53 | F158: 8.4 | G158: 8.62 | H158: 8.37 | I158: 636
A159: 1525 | B159: 江 申 | C159: ▲ | D159: 0.3 | E159: 18.6 | F159: 18.3 | G159: 18.6 | H159: 18.3 | I159: 60
A160: 1526 | B160: 日 馳 | C160: ▲ | D160: 0.08 | E160: 5.78 | F160: 5.82 | G160: 5.82 | H160: 5.69 | I160: 78
A161: 1527 | B161: 鑽 全 | C161: ▲ | D161: 0.1 | E161: 25.75 | F161: 25.65 | G161: 25.85 | H161: 25.35 | I161: 187
A162: 1528 | B162: 恩 德 | C162: ▼ | D162: -0.01 | E162: 8.54 | F162: 8.55 | G162: 8.55 | H162: 8.45 | I162: 38
A163: 1529 | B163: 樂 士 | C163: ▼ | D163: -0.04 | E163: 3.62 | F163: 3.61 | G163: 3.66 | H163: 3.59 | I163: 522
A164: 1530 | B164: 亞 崴 | D164: 0 | E164: 26.5 | F164: 27 | G164: 27 | H164: 26.1 | I164: 241
A165: 1531 | B165: 高林股 | C165: ▲ | D165: 0.45 | E165: 13.9 | F165: 13.5 | G165: 13.95 | H165: 13.45 | I165: 1151
A166: 1532 | B166: 勤 美 | C166: ▲ | D166: 2.05 | E166: 31.95 | F166: 31 | G166: 31.95 | H166: 30.5 | I166: 10948
A167: 1533 | B167: 車王電 | C167: ▲ | D167: 0.4 | E167: 14.65 | F167: 14.25 | G167: 14.65 | H167: 14.25 | I167: 219
A168: 1535 | B168: 中 宇 | C168: ▲ | D168: 2.15 | E168: 43.25 | F168: 41.3 | G168: 43.9 | H168: 41 | I168: 1593
A169: 1536 | B169: 和 大 | C169: ▲ | D169: 0.29 | E169: 8.3 | F169: 8.01 | G169: 8.4 | H169: 7.98 | I169: 7698
A170: 1537 | B170: 廣 隆 | C170: ▼ | D170: -0.5 | E170: 20.1 | F170: 20.35 | G170: 20.75 | H170: 20 | I170: 133
A171: 1538 | B171: 正峰工 | C171: ▲ | D171: 0.05 | E171: 19.25 | F171: 19.2 | G171: 19.5 | H171: 19.15 | I171: 528
A172: 1539 | B172: 巨 庭 | C172: ▲ | D172: 0.11 | E172: 5.55 | F172: 5.44 | G172: 5.55 | H172: 5.41 | I172: 15
A173: 1540 | B173: 喬 福 | C173: ▲ | D173: 0.35 | E173: 30.9 | F173: 30.55 | G173: 30.9 | H173: 30.55 | I173: 81
A174: 1541 | B174: 錩 泰 | C174: ▲ | D174: 0.45 | E174: 11.45 | F174: 11.35 | G174: 11.75 | H174: 11.25 | I174: 29
A175: 1558 | B175: 伸 興 | C175: ▲ | D175: 0.3 | E175: 35.3 | F175: 35.2 | G175: 35.3 | H175: 35.1 | I175: 7
A176: 1560 | B176: 中 砂 | C176: ▲ | D176: 0.6 | E176: 27.75 | F176: 27.5 | G176: 28.1 | H176: 27.25 | I176: 453
A177: 1565 | B177: 精 華 | C177: ▲ | D177: 1.5 | E177: 126.5 | F177: 125 | G177: 127 | H177: 125 | I177: 118
A178: 1569 | B178: 濱 川 | C178: ▼ | D178: -0.05 | E178: 16.5 | F178: 16.5 | G178: 16.6 | H178: 16.5 | I178: 15
A179: 1570 | B179: 力 肯 | C179: ▲ | D179: 0.05 | E179: 6.87 | F179: 6.88 | G179: 6.88 | H179: 6.63 | I179: 22
A180: 1580 | B180: 新 麥 | D180: 0 | E180: 33.8 | F180: 33.8 | G180: 33.9 | H180: 33.8 | I180: 24
A181: 1582 | B181: 信 錦 | C181: ▲ | D181: 2.4 | E181: 53.4 | F181: 51.2 | G181: 53.8 | H181: 51.2 | I181: 1174
A182: 1583 | B182: 程 泰 | C182: ▲ | D182: 0.15 | E182: 24.8 | F182: 24.65 | G182: 24.9 | H182: 24.65 | I182: 23
A183: 1584 | B183: 精 剛 | C183: ▼ | D183: -0.1 | E183: 14 | F183: 13.9 | G183: 14 | H183: 13.75 | I183: 35
A184: 1603 | B184: 華 電 | C184: ▲ | D184: 0.33 | E184: 7.29 | F184: 7.09 | G184: 7.44 | H184: 7.05 | I184: 3468
A185: 1604 | B185: 聲 寶 | C185: ▲ | D185: 0.1 | E185: 5.25 | F185: 5.2 | G185: 5.28 | H185: 5.17 | I185: 4548
A186: 1605 | B186: 華 新 | C186: ▼ | D186: -0.2 | E186: 10.8 | F186: 11 | G186: 11.05 | H186: 10.7 | I186: 16294
A187: 1606 | B187: 歌 林 | D187: 0 | E187: 0 | F187: 0 | G187: 0 | H187: 0 | I187: 0
A188: 1608 | B188: 華 榮 | C188: ▲ | D188: 0.11 | E188: 7.4 | F188: 7.31 | G188: 7.49 | H188: 7.29 | I188: 1489
A189: 1609 | B189: 大 亞 | C189: ▲ | D189: 0.06 | E189: 6.01 | F189: 5.95 | G189: 6.09 | H189: 5.93 | I189: 748
A190: 1611 | B190: 中 電 | C190: ▲ | D190: 0.05 | E190: 15.7 | F190: 15.7 | G190: 15.7 | H190: 15.3 | I190: 1918
A191: 1612 | B191: 宏 泰 | C191: ▲ | D191: 0.2 | E191: 11.15 | F191: 11.3 | G191: 11.5 | H191: 11 | I191: 1728
A192: 1613 | B192: 台 一 | C192: ▼ | D192: -0.02 | E192: 3.49 | F192: 3.51 | G192: 3.53 | H192: 3.41 | I192: 235
A193: 1614 | B193: 三洋電 | C193: ▲ | D193: 0.85 | E193: 31.2 | F193: 30.4 | G193: 31.45 | H193: 30.4 | I193: 503
A194: 1615 | B194: 大 山 | C194: ▲ | D194: 0.01 | E194: 7.77 | F194: 7.76 | G194: 7.87 | H194: 7.76 | I194: 17
A195: 1616 | B195: 億 泰 | C195: ▼ | D195: -0.02 | E195: 5.29 | F195: 5.35 | G195: 5.42 | H195: 5.27 | I195: 136
A196: 1617 | B196: 榮 星 | C196: ▲ | D196: 0.09 | E196: 6.14 | F196: 6.15 | G196: 6.15 | H196: 5.95 | I196: 86
A197: 1618 | B197: 合 機 | C197: ▲ | D197: 0.35 | E197: 21.15 | F197: 21.4 | G197: 21.95 | H197: 20.7 | I197: 17478
A198: 1701 | B198: 中 化 | C198: ▲ | D198: 0.8 | E198: 21.8 | F198: 21.4 | G198: 22.2 | H198: 20.9 | I198: 15534
A199: 1702 | B199: 南 僑 | C199: ▲ | D199: 0.46 | E199: 8.79 | F199: 8.34 | G199: 8.91 | H199: 8.33 | I199: 2121
A200: 1704 | B200: 榮 化 | C200: ▼ | D200: -0.15 | E200: 29.25 | F200: 29.4 | G200: 29.6 | H200: 29.05 | I200: 1226
A201: 1707 | B201: 葡萄王 | C201: ▲ | D201: 0.6 | E201: 22.4 | F201: 21.8 | G201: 22.5 | H201: 21.8 | I201: 1535
... 1172 more rows

Sheet 費率
A1: 券商手續費率 | B1: =D1/1000000 -> 0.001425 | D1: 1425 | F1: 買賣方式
A2: 證券交易稅率 | B2: =D2/1000 -> 0.003 | D2: 3 | F2: 普通
A3: 上市融資成數 | B3: =D3/100 -> 0.6 | D3: 60 | F3: 融資
A4: 上櫃融資成數 | B4: =D4/100 -> 0.5 | D4: 50 | F4: 融券
A5: 上市融券成數 | B5: =D5/100 -> 0.9 | D5: 90
A6: 上櫃融券成數 | B6: =D6/100 -> 0.9 | D6: 90
A7: 融資利率 | B7: =D7/10000 -> 0.0665 | D7: 665
A8: 融券手續費率 | B8: =D8/10000 -> 0.0008 | D8: 8
A9: 擔保品保證金利率 | B9: =D9/1000 -> 0.003 | D9: 3

Sheet 交易紀錄
A1: 編號 | B1: 日期 | C1: 股票代號 | D1: 股票名稱 | E1: 買賣方式 | F1: 買入股數 | G1: 買入單價 | H1: 賣出股數 | I1: 賣出單價 | J1: 總價 | K1: 手續費 | L1: 證交稅 | M1: 融資自備款 | N1: 融資金額 | O1: 融資利息費用 | P1: 融券手續費 | Q1: 融券利息收入 | R1: 買入總成本 | S1: 保證金 | T1: (融券擔保品)賣出淨額 | V1: 買賣方式 | W1: 買入股數
A2: 2330-1 | B2: 2009-06-05 | C2: 2330 | D2: =IF(C2="","",VLOOKUP(C2,股票收盤資料區,2,FALSE)) -> 台積電 | E2: 融資 | F2: 23000 | G2: 40 | J2: =IF(C2="","",F2*G2+H2*I2) -> 920000 | K2: =IF(C2="","",J2*券商手續費率) -> 1311 | L2: =IF(C2="","",IF(H2>0,J2*證券交易稅率,"")) ->  | M2: =IF(C2="","",IF(AND(E2="融資",F2>0),J2-N2,"")) -> 368000 | N2: =IF(C2="","",IF(AND(E2="融資",F2>0),1000*INT(J2*IF(ISNA(VLOOKUP(C2,上櫃代碼,1,FALSE)),上市融資成數,上櫃融資成數)/1000),"")) -> 552000 | O2: =IF(C2="","",IF(AND(E2="融資",H2>0),H2/VLOOKUP(A2,交易內容,6,0)*VLOOKUP(A2,交易內容,14,0)*融資利率*IF(B2-VLOOKUP(A2,交易內容,2,0)<2,1,B2-VLOOKUP(A2,交易內容,2,0))/365,"")) ->  | P2: =IF(C2="","",IF(AND(E2="融券",H2>0),J2*融券手續費率,"")) ->  | Q2: =IF(C2="","",IF(AND(E2="融券",F2>0),F2/VLOOKUP(A2,交易內容,8,0)*(VLOOKUP(A2,交易內容,19,0)+VLOOKUP(A2,交易內容,20,0))*擔保品保證金利率*IF(B2-VLOOKUP(A2,交易內容,2,0)<2,1,B2-VLOOKUP(A2,交易內容,2,0))/365,"")) ->  | R2: =IF(C2="","",IF(AND(E2="融券",F2>0),J2+K2-Q2,IF(F2>0,J2+K2,""))) -> 921311 | S2: =IF(C2="","",IF(AND(E2="融券",H2>0),J2*IF(ISNA(VLOOKUP(C2,上櫃代碼,1,0)),上市融券成數,上櫃融券成數),"")) ->  | T2: =IF(C2="","",IF(H2>0,IF(E2="融券",J2-K2-L2-P2,IF(E2="融資",J2-K2-L2-O2,J2-K2-L2)),"")) ->  | V2: 普通 | W2: >0
A3: 2330-1 | B3: 2009-06-07 | C3: 2330 | D3: 台積電 | E3: 融資 | H3: 10000 | I3: 41 | J3: =IF(C3="","",F3*G3+H3*I3) -> 410000 | K3: 584.25 | L3: 1230 | M3: =IF(C3="","",IF(AND(E3="融資",F3>0),J3-N3,"")) ->  | O3: 87.45205479 | R3: =IF(C3="","",IF(AND(E3="融券",F3>0),J3+K3-Q3,IF(F3>0,J3+K3,""))) ->  | T3: =IF(C3="","",IF(H3>0,IF(E3="融券",J3-K3-L3-P3,IF(E3="融資",J3-K3-L3-O3,J3-K3-L3)),"")) -> 408098.2979
A4: 2330-1 | B4: 2009-06-09 | C4: 2330 | D4: 台積電 | E4: 融資 | H4: 13000 | I4: 43 | J4: 559000 | K4: =IF(C4="","",J4*券商手續費率) -> 796.575 | L4: 1677 | M4: =IF(C4="","",IF(AND(E4="融資",F4>0),J4-N4,"")) ->  | O4: 227.3753425 | T4: =IF(C4="","",IF(H4>0,IF(E4="融券",J4-K4-L4-P4,IF(E4="融資",J4-K4-L4-O4,J4-K4-L4)),"")) -> 556299.0497
A5: 2301-0 | B5: 2009-06-11 | C5: 2301 | D5: 光寶科 | E5: 普通 | F5: 2000 | G5: 30 | J5: 60000 | K5: 85.5 | R5: 60085.5 | T5: =IF(C5="","",IF(H5>0,IF(E5="融券",J5-K5-L5-P5,IF(E5="融資",J5-K5-L5-O5,J5-K5-L5)),"")) -> 
A6: 2301-0 | B6: 2009-06-13 | C6: 2301 | D6: 光寶科 | E6: 普通 | H6: 1000 | I6: 32 | J6: =IF(C6="","",F6*G6+H6*I6) -> 32000 | K6: 45.6 | L6: 96 | T6: 31858.4
A7: 1101-1 | B7: 2009-06-15 | C7: 1101 | D7: 台 泥 | E7: 融資 | F7: 18000 | G7: 13 | J7: 234000 | K7: 333.45 | M7: 94000 | N7: 140000 | R7: 234333.45
A8: 1104-1 | B8: 2009-05-17 | C8: 1104 | D8: 環 泥 | E8: 融券 | H8: 9000 | I8: 10 | J8: 90000 | K8: 128.25 | L8: 270 | P8: 72 | S8: 81000 | T8: 89529.75
A9: 1104-1 | B9: 2009-05-19 | C9: 1104 | D9: 環 泥 | E9: 融券 | F9: 9000 | G9: 12 | J9: 108000 | K9: 153.9 | Q9: 2.803228767 | R9: 108151.0968
A10: 2801-1 | B10: 2009-05-21 | C10: 2801 | D10: 彰 銀 | E10: 融資 | F10: 14000 | G10: 17 | J10: 238000 | K10: 339.15 | M10: 96000 | N10: 142000 | R10: 238339.15
A11: 2801-1 | B11: 2009-05-23 | C11: 2801 | D11: 彰 銀 | E11: 融資 | H11: 14000 | I11: 25 | J11: 350000 | K11: 498.75 | L11: 1050 | O11: 51.74246575 | T11: 348399.5075
A12: 1217-1 | B12: 2009-05-25 | C12: 1217 | D12: 愛之味 | E12: 融券 | H12: 5000 | I12: 8 | J12: 40000 | K12: 57 | L12: 120 | P12: 32 | S12: 36000 | T12: 39791
A13: 2002-1 | B13: 2009-05-27 | C13: 2002 | D13: 中 鋼 | E13: 融券 | H13: 10000 | I13: 31 | J13: 310000 | K13: 441.75 | L13: 930 | P13: 248 | S13: 279000 | T13: 308380.25
A14: 2356-0 | B14: 2009-05-29 | C14: 2356 | D14: 英業達 | E14: 普通 | F14: 21000 | G14: 17 | J14: 357000 | K14: 508.725 | R14: 357508.725
A15: 5301-0 | B15: 2009-05-31 | C15: 5301 | D15: 祥裕電 | E15: 普通 | F15: 8000 | G15: 7 | J15: 56000 | K15: 79.8 | R15: 56079.8
A16: 2356-0 | B16: 2009-06-02 | C16: 2356 | D16: 英業達 | E16: 普通 | H16: 3000 | I16: 18 | J16: 54000 | K16: 76.95 | L16: 162 | T16: 53761.05
A17: 2801-2 | B17: 2009-06-04 | C17: 2801 | D17: 彰 銀 | E17: 融資 | F17: 15000 | G17: 17 | J17: 255000 | K17: 363.375 | M17: 102000 | N17: 153000 | R17: 255363.375
A18: 2303-1 | B18: 2009-06-06 | C18: 2303 | D18: 聯 電 | E18: 融券 | H18: 9000 | I18: 20 | J18: 180000 | K18: 256.5 | L18: 540 | P18: 144 | S18: 162000 | T18: 179059.5
A19: 2002-1 | B19: 2009-06-08 | C19: 2002 | D19: 中 鋼 | E19: 融券 | F19: 5000 | G19: 25 | J19: 125000 | K19: 178.125 | Q19: 28.96669726 | R19: 125149.1583
A20: 2301-0 | B20: 2009-06-10 | C20: 2301 | D20: 光寶科 | E20: 普通 | F20: 15000 | G20: 31 | J20: 465000 | K20: 662.625 | R20: 465662.625
A21: 2330-2 | B21: 2009-06-12 | C21: 2330 | D21: 台積電 | E21: 融資 | F21: 13000 | G21: 42 | J21: 546000 | K21: 778.05 | M21: 219000 | N21: 327000 | R21: 546778.05
A22: 2330-2 | B22: 2009-06-14 | C22: 2330 | D22: 台積電 | E22: 融資 | H22: 13000 | I22: 42.5 | J22: 552500 | K22: 787.3125 | L22: 1657.5 | O22: 119.1534247 | T22: 549936.0341
A23: 2330-0 | B23: 2009-06-16 | C23: 2330 | D23: 台積電 | E23: 普通 | F23: 3000 | G23: 43 | J23: 129000 | K23: 183.825 | R23: 129183.825
A24: 2303-1 | B24: 2009-06-18 | C24: 2303 | D24: 聯 電 | E24: 融券 | F24: 5000 | G24: 18 | J24: 90000 | K24: 128.25 | Q24: 18.68819178 | R24: 90109.56181
A25: 2303-0 | B25: 2009-06-20 | C25: 2303 | D25: 聯 電 | E25: 普通 | F25: 10000 | G25: 22 | J25: 220000 | K25: 313.5 | R25: 220313.5
A26: 2303-0 | B26: 2009-06-22 | C26: 2303 | D26: 聯 電 | E26: 普通 | H26: 5000 | I26: 20 | J26: =IF(C26="","",F26*G26+H26*I26) -> 100000 | K26: 142.5 | L26: 300 | T26: 99557.5
D27: =IF(C27="","",VLOOKUP(C27,股票代碼區,2,FALSE)) ->  | J27: =IF(C27="","",F27*G27+H27*I27) ->  | K27: =IF(C27="","",J27*券商手續費率) ->  | L27: =IF(C27="","",IF(H27>0,J27*證券交易稅率,"")) ->  | O27: =IF(C27="","",IF(AND(E27="融資",H27>0),H27/VLOOKUP(A27,交易內容,6,0)*VLOOKUP(A27,交易內容,14,0)*融資利率*IF(B27-VLOOKUP(A27,交易內容,2,0)<2,1,B27-VLOOKUP(A27,交易內容,2,0))/365,"")) ->  | P27: =IF(C27="","",IF(AND(E27="融券",H27>0),J27*融券手續費率,"")) -> 
N34: =IF(C34="","",IF(AND(E34="融資",F34>0),1000*INT(J34*IF(ISNA(VLOOKUP(C34,上櫃代碼,1,FALSE)),上市融資成數,上櫃融資成數)/1000),"")) ->  | Q34: =IF(C34="","",IF(AND(E34="融券",F34>0),F34/VLOOKUP(A34,交易內容,8,0)*(VLOOKUP(A34,交易內容,19,0)+VLOOKUP(A34,交易內容,20,0))*擔保品保證金利率*IF(B34-VLOOKUP(A34,交易內容,2,0)<2,1,B34-VLOOKUP(A34,交易內容,2,0))/365,"")) ->  | S34: =IF(C34="","",IF(AND(E34="融券",H34>0),J34*IF(ISNA(VLOOKUP(C34,上櫃代碼,1,0)),上市融券成數,上櫃融券成數),"")) -> 
J51: =DSUM(交易內容,10,V1:W2) -> 1287000 | M51: =SUM(M2:M50) -> 879000 | Q51: =IF(C51="","",IF(E51<>"券買","",(F51*VLOOKUP(VLOOKUP(A51,費率!$Q$21:$T$29,4,FALSE),交易內容,7,FALSE)*IF(ISERROR(VLOOKUP(C51,上櫃代碼,1,FALSE)),上市融券成數,上櫃融券成數)+((F51/VLOOKUP(VLOOKUP(A51,費率!$Q$21:$T$29,4,FALSE),交易內容,6,FALSE))*VLOOKUP(VLOOKUP(A51,費率!$Q$21:$T$29,4,FALSE),交易內容,18,FALSE)))*擔保金保證金利率*IF(B51-VLOOKUP(A51,費率!$Q$21:$T$29,4,FALSE)<2,1,(B51-VLOOKUP(A51,費率!$Q$21:$T$29,4,FALSE)))/365)) ->  | S51: =SUM(S2:S50) -> 558000 | T51: =J51+M51+S51 -> 2724000
Q52: =IF(C52="","",IF(E52<>"券買","",(F52*VLOOKUP(VLOOKUP(A52,費率!$Q$21:$T$29,4,FALSE),交易內容,7,FALSE)*IF(ISERROR(VLOOKUP(C52,上櫃代碼,1,FALSE)),上市融券成數,上櫃融券成數)+((F52/VLOOKUP(VLOOKUP(A52,費率!$Q$21:$T$29,4,FALSE),交易內容,6,FALSE))*VLOOKUP(VLOOKUP(A52,費率!$Q$21:$T$29,4,FALSE),交易內容,18,FALSE)))*擔保金保證金利率*IF(B52-VLOOKUP(A52,費率!$Q$21:$T$29,4,FALSE)<2,1,(B52-VLOOKUP(A52,費率!$Q$21:$T$29,4,FALSE)))/365)) -> 
Q53: =IF(C53="","",IF(E53<>"券買","",(F53*VLOOKUP(VLOOKUP(A53,費率!$Q$21:$T$29,4,FALSE),交易內容,7,FALSE)*IF(ISERROR(VLOOKUP(C53,上櫃代碼,1,FALSE)),上市融券成數,上櫃融券成數)+((F53/VLOOKUP(VLOOKUP(A53,費率!$Q$21:$T$29,4,FALSE),交易內容,6,FALSE))*VLOOKUP(VLOOKUP(A53,費率!$Q$21:$T$29,4,FALSE),交易內容,18,FALSE)))*擔保金保證金利率*IF(B53-VLOOKUP(A53,費率!$Q$21:$T$29,4,FALSE)<2,1,(B53-VLOOKUP(A53,費率!$Q$21:$T$29,4,FALSE)))/365)) -> 
Q54: =IF(C54="","",IF(E54<>"券買","",(F54*VLOOKUP(VLOOKUP(A54,費率!$Q$21:$T$29,4,FALSE),交易內容,7,FALSE)*IF(ISERROR(VLOOKUP(C54,上櫃代碼,1,FALSE)),上市融券成數,上櫃融券成數)+((F54/VLOOKUP(VLOOKUP(A54,費率!$Q$21:$T$29,4,FALSE),交易內容,6,FALSE))*VLOOKUP(VLOOKUP(A54,費率!$Q$21:$T$29,4,FALSE),交易內容,18,FALSE)))*擔保金保證金利率*IF(B54-VLOOKUP(A54,費率!$Q$21:$T$29,4,FALSE)<2,1,(B54-VLOOKUP(A54,費率!$Q$21:$T$29,4,FALSE)))/365)) -> 
Q55: =IF(C55="","",IF(E55<>"券買","",(F55*VLOOKUP(VLOOKUP(A55,費率!$Q$21:$T$29,4,FALSE),交易內容,7,FALSE)*IF(ISERROR(VLOOKUP(C55,上櫃代碼,1,FALSE)),上市融券成數,上櫃融券成數)+((F55/VLOOKUP(VLOOKUP(A55,費率!$Q$21:$T$29,4,FALSE),交易內容,6,FALSE))*VLOOKUP(VLOOKUP(A55,費率!$Q$21:$T$29,4,FALSE),交易內容,18,FALSE)))*擔保金保證金利率*IF(B55-VLOOKUP(A55,費率!$Q$21:$T$29,4,FALSE)<2,1,(B55-VLOOKUP(A55,費率!$Q$21:$T$29,4,FALSE)))/365)) -> 
Q56: =IF(C56="","",IF(E56<>"券買","",(F56*VLOOKUP(VLOOKUP(A56,費率!$Q$21:$T$29,4,FALSE),交易內容,7,FALSE)*IF(ISERROR(VLOOKUP(C56,上櫃代碼,1,FALSE)),上市融券成數,上櫃融券成數)+((F56/VLOOKUP(VLOOKUP(A56,費率!$Q$21:$T$29,4,FALSE),交易內容,6,FALSE))*VLOOKUP(VLOOKUP(A56,費率!$Q$21:$T$29,4,FALSE),交易內容,18,FALSE)))*擔保金保證金利率*IF(B56-VLOOKUP(A56,費率!$Q$21:$T$29,4,FALSE)<2,1,(B56-VLOOKUP(A56,費率!$Q$21:$T$29,4,FALSE)))/365)) -> 
Q57: =IF(C57="","",IF(E57<>"券買","",(F57*VLOOKUP(VLOOKUP(A57,費率!$Q$21:$T$29,4,FALSE),交易內容,7,FALSE)*IF(ISERROR(VLOOKUP(C57,上櫃代碼,1,FALSE)),上市融券成數,上櫃融券成數)+((F57/VLOOKUP(VLOOKUP(A57,費率!$Q$21:$T$29,4,FALSE),交易內容,6,FALSE))*VLOOKUP(VLOOKUP(A57,費率!$Q$21:$T$29,4,FALSE),交易內容,18,FALSE)))*擔保金保證金利率*IF(B57-VLOOKUP(A57,費率!$Q$21:$T$29,4,FALSE)<2,1,(B57-VLOOKUP(A57,費率!$Q$21:$T$29,4,FALSE)))/365)) -> 
Q58: =IF(C58="","",IF(E58<>"券買","",(F58*VLOOKUP(VLOOKUP(A58,費率!$Q$21:$T$29,4,FALSE),交易內容,7,FALSE)*IF(ISERROR(VLOOKUP(C58,上櫃代碼,1,FALSE)),上市融券成數,上櫃融券成數)+((F58/VLOOKUP(VLOOKUP(A58,費率!$Q$21:$T$29,4,FALSE),交易內容,6,FALSE))*VLOOKUP(VLOOKUP(A58,費率!$Q$21:$T$29,4,FALSE),交易內容,18,FALSE)))*擔保金保證金利率*IF(B58-VLOOKUP(A58,費率!$Q$21:$T$29,4,FALSE)<2,1,(B58-VLOOKUP(A58,費率!$Q$21:$T$29,4,FALSE)))/365)) -> 
Q59: =IF(C59="","",IF(E59<>"券買","",(F59*VLOOKUP(VLOOKUP(A59,費率!$Q$21:$T$29,4,FALSE),交易內容,7,FALSE)*IF(ISERROR(VLOOKUP(C59,上櫃代碼,1,FALSE)),上市融券成數,上櫃融券成數)+((F59/VLOOKUP(VLOOKUP(A59,費率!$Q$21:$T$29,4,FALSE),交易內容,6,FALSE))*VLOOKUP(VLOOKUP(A59,費率!$Q$21:$T$29,4,FALSE),交易內容,18,FALSE)))*擔保金保證金利率*IF(B59-VLOOKUP(A59,費率!$Q$21:$T$29,4,FALSE)<2,1,(B59-VLOOKUP(A59,費率!$Q$21:$T$29,4,FALSE)))/365)) -> 
Q60: =IF(C60="","",IF(E60<>"券買","",(F60*VLOOKUP(VLOOKUP(A60,費率!$Q$21:$T$29,4,FALSE),交易內容,7,FALSE)*IF(ISERROR(VLOOKUP(C60,上櫃代碼,1,FALSE)),上市融券成數,上櫃融券成數)+((F60/VLOOKUP(VLOOKUP(A60,費率!$Q$21:$T$29,4,FALSE),交易內容,6,FALSE))*VLOOKUP(VLOOKUP(A60,費率!$Q$21:$T$29,4,FALSE),交易內容,18,FALSE)))*擔保金保證金利率*IF(B60-VLOOKUP(A60,費率!$Q$21:$T$29,4,FALSE)<2,1,(B60-VLOOKUP(A60,費率!$Q$21:$T$29,4,FALSE)))/365)) -> 
Q61: =IF(C61="","",IF(E61<>"券買","",(F61*VLOOKUP(VLOOKUP(A61,費率!$Q$21:$T$29,4,FALSE),交易內容,7,FALSE)*IF(ISERROR(VLOOKUP(C61,上櫃代碼,1,FALSE)),上市融券成數,上櫃融券成數)+((F61/VLOOKUP(VLOOKUP(A61,費率!$Q$21:$T$29,4,FALSE),交易內容,6,FALSE))*VLOOKUP(VLOOKUP(A61,費率!$Q$21:$T$29,4,FALSE),交易內容,18,FALSE)))*擔保金保證金利率*IF(B61-VLOOKUP(A61,費率!$Q$21:$T$29,4,FALSE)<2,1,(B61-VLOOKUP(A61,費率!$Q$21:$T$29,4,FALSE)))/365)) -> 
Q62: =IF(C62="","",IF(E62<>"券買","",(F62*VLOOKUP(VLOOKUP(A62,費率!$Q$21:$T$29,4,FALSE),交易內容,7,FALSE)*IF(ISERROR(VLOOKUP(C62,上櫃代碼,1,FALSE)),上市融券成數,上櫃融券成數)+((F62/VLOOKUP(VLOOKUP(A62,費率!$Q$21:$T$29,4,FALSE),交易內容,6,FALSE))*VLOOKUP(VLOOKUP(A62,費率!$Q$21:$T$29,4,FALSE),交易內容,18,FALSE)))*擔保金保證金利率*IF(B62-VLOOKUP(A62,費率!$Q$21:$T$29,4,FALSE)<2,1,(B62-VLOOKUP(A62,費率!$Q$21:$T$29,4,FALSE)))/365)) -> 
Q63: =IF(C63="","",IF(E63<>"券買","",(F63*VLOOKUP(VLOOKUP(A63,費率!$Q$21:$T$29,4,FALSE),交易內容,7,FALSE)*IF(ISERROR(VLOOKUP(C63,上櫃代碼,1,FALSE)),上市融券成數,上櫃融券成數)+((F63/VLOOKUP(VLOOKUP(A63,費率!$Q$21:$T$29,4,FALSE),交易內容,6,FALSE))*VLOOKUP(VLOOKUP(A63,費率!$Q$21:$T$29,4,FALSE),交易內容,18,FALSE)))*擔保金保證金利率*IF(B63-VLOOKUP(A63,費率!$Q$21:$T$29,4,FALSE)<2,1,(B63-VLOOKUP(A63,費率!$Q$21:$T$29,4,FALSE)))/365)) -> 
Q64: =IF(C64="","",IF(E64<>"券買","",(F64*VLOOKUP(VLOOKUP(A64,費率!$Q$21:$T$29,4,FALSE),交易內容,7,FALSE)*IF(ISERROR(VLOOKUP(C64,上櫃代碼,1,FALSE)),上市融券成數,上櫃融券成數)+((F64/VLOOKUP(VLOOKUP(A64,費率!$Q$21:$T$29,4,FALSE),交易內容,6,FALSE))*VLOOKUP(VLOOKUP(A64,費率!$Q$21:$T$29,4,FALSE),交易內容,18,FALSE)))*擔保金保證金利率*IF(B64-VLOOKUP(A64,費率!$Q$21:$T$29,4,FALSE)<2,1,(B64-VLOOKUP(A64,費率!$Q$21:$T$29,4,FALSE)))/365)) -> 
Q65: =IF(C65="","",IF(E65<>"券買","",(F65*VLOOKUP(VLOOKUP(A65,費率!$Q$21:$T$29,4,FALSE),交易內容,7,FALSE)*IF(ISERROR(VLOOKUP(C65,上櫃代碼,1,FALSE)),上市融券成數,上櫃融券成數)+((F65/VLOOKUP(VLOOKUP(A65,費率!$Q$21:$T$29,4,FALSE),交易內容,6,FALSE))*VLOOKUP(VLOOKUP(A65,費率!$Q$21:$T$29,4,FALSE),交易內容,18,FALSE)))*擔保金保證金利率*IF(B65-VLOOKUP(A65,費率!$Q$21:$T$29,4,FALSE)<2,1,(B65-VLOOKUP(A65,費率!$Q$21:$T$29,4,FALSE)))/365)) -> 
Q66: =IF(C66="","",IF(E66<>"券買","",(F66*VLOOKUP(VLOOKUP(A66,費率!$Q$21:$T$29,4,FALSE),交易內容,7,FALSE)*IF(ISERROR(VLOOKUP(C66,上櫃代碼,1,FALSE)),上市融券成數,上櫃融券成數)+((F66/VLOOKUP(VLOOKUP(A66,費率!$Q$21:$T$29,4,FALSE),交易內容,6,FALSE))*VLOOKUP(VLOOKUP(A66,費率!$Q$21:$T$29,4,FALSE),交易內容,18,FALSE)))*擔保金保證金利率*IF(B66-VLOOKUP(A66,費率!$Q$21:$T$29,4,FALSE)<2,1,(B66-VLOOKUP(A66,費率!$Q$21:$T$29,4,FALSE)))/365)) -> 
Q67: =IF(C67="","",IF(E67<>"券買","",(F67*VLOOKUP(VLOOKUP(A67,費率!$Q$21:$T$29,4,FALSE),交易內容,7,FALSE)*IF(ISERROR(VLOOKUP(C67,上櫃代碼,1,FALSE)),上市融券成數,上櫃融券成數)+((F67/VLOOKUP(VLOOKUP(A67,費率!$Q$21:$T$29,4,FALSE),交易內容,6,FALSE))*VLOOKUP(VLOOKUP(A67,費率!$Q$21:$T$29,4,FALSE),交易內容,18,FALSE)))*擔保金保證金利率*IF(B67-VLOOKUP(A67,費率!$Q$21:$T$29,4,FALSE)<2,1,(B67-VLOOKUP(A67,費率!$Q$21:$T$29,4,FALSE)))/365)) -> 
Q68: =IF(C68="","",IF(E68<>"券買","",(F68*VLOOKUP(VLOOKUP(A68,費率!$Q$21:$T$29,4,FALSE),交易內容,7,FALSE)*IF(ISERROR(VLOOKUP(C68,上櫃代碼,1,FALSE)),上市融券成數,上櫃融券成數)+((F68/VLOOKUP(VLOOKUP(A68,費率!$Q$21:$T$29,4,FALSE),交易內容,6,FALSE))*VLOOKUP(VLOOKUP(A68,費率!$Q$21:$T$29,4,FALSE),交易內容,18,FALSE)))*擔保金保證金利率*IF(B68-VLOOKUP(A68,費率!$Q$21:$T$29,4,FALSE)<2,1,(B68-VLOOKUP(A68,費率!$Q$21:$T$29,4,FALSE)))/365)) -> 
Q69: =IF(C69="","",IF(E69<>"券買","",(F69*VLOOKUP(VLOOKUP(A69,費率!$Q$21:$T$29,4,FALSE),交易內容,7,FALSE)*IF(ISERROR(VLOOKUP(C69,上櫃代碼,1,FALSE)),上市融券成數,上櫃融券成數)+((F69/VLOOKUP(VLOOKUP(A69,費率!$Q$21:$T$29,4,FALSE),交易內容,6,FALSE))*VLOOKUP(VLOOKUP(A69,費率!$Q$21:$T$29,4,FALSE),交易內容,18,FALSE)))*擔保金保證金利率*IF(B69-VLOOKUP(A69,費率!$Q$21:$T$29,4,FALSE)<2,1,(B69-VLOOKUP(A69,費率!$Q$21:$T$29,4,FALSE)))/365)) -> 
Q70: =IF(C70="","",IF(E70<>"券買","",(F70*VLOOKUP(VLOOKUP(A70,費率!$Q$21:$T$29,4,FALSE),交易內容,7,FALSE)*IF(ISERROR(VLOOKUP(C70,上櫃代碼,1,FALSE)),上市融券成數,上櫃融券成數)+((F70/VLOOKUP(VLOOKUP(A70,費率!$Q$21:$T$29,4,FALSE),交易內容,6,FALSE))*VLOOKUP(VLOOKUP(A70,費率!$Q$21:$T$29,4,FALSE),交易內容,18,FALSE)))*擔保金保證金利率*IF(B70-VLOOKUP(A70,費率!$Q$21:$T$29,4,FALSE)<2,1,(B70-VLOOKUP(A70,費率!$Q$21:$T$29,4,FALSE)))/365)) -> 
Q71: =IF(C71="","",IF(E71<>"券買","",(F71*VLOOKUP(VLOOKUP(A71,費率!$Q$21:$T$29,4,FALSE),交易內容,7,FALSE)*IF(ISERROR(VLOOKUP(C71,上櫃代碼,1,FALSE)),上市融券成數,上櫃融券成數)+((F71/VLOOKUP(VLOOKUP(A71,費率!$Q$21:$T$29,4,FALSE),交易內容,6,FALSE))*VLOOKUP(VLOOKUP(A71,費率!$Q$21:$T$29,4,FALSE),交易內容,18,FALSE)))*擔保金保證金利率*IF(B71-VLOOKUP(A71,費率!$Q$21:$T$29,4,FALSE)<2,1,(B71-VLOOKUP(A71,費率!$Q$21:$T$29,4,FALSE)))/365)) -> 
Q72: =IF(C72="","",IF(E72<>"券買","",(F72*VLOOKUP(VLOOKUP(A72,費率!$Q$21:$T$29,4,FALSE),交易內容,7,FALSE)*IF(ISERROR(VLOOKUP(C72,上櫃代碼,1,FALSE)),上市融券成數,上櫃融券成數)+((F72/VLOOKUP(VLOOKUP(A72,費率!$Q$21:$T$29,4,FALSE),交易內容,6,FALSE))*VLOOKUP(VLOOKUP(A72,費率!$Q$21:$T$29,4,FALSE),交易內容,18,FALSE)))*擔保金保證金利率*IF(B72-VLOOKUP(A72,費率!$Q$21:$T$29,4,FALSE)<2,1,(B72-VLOOKUP(A72,費率!$Q$21:$T$29,4,FALSE)))/365)) -> 
Q73: =IF(C73="","",IF(E73<>"券買","",(F73*VLOOKUP(VLOOKUP(A73,費率!$Q$21:$T$29,4,FALSE),交易內容,7,FALSE)*IF(ISERROR(VLOOKUP(C73,上櫃代碼,1,FALSE)),上市融券成數,上櫃融券成數)+((F73/VLOOKUP(VLOOKUP(A73,費率!$Q$21:$T$29,4,FALSE),交易內容,6,FALSE))*VLOOKUP(VLOOKUP(A73,費率!$Q$21:$T$29,4,FALSE),交易內容,18,FALSE)))*擔保金保證金利率*IF(B73-VLOOKUP(A73,費率!$Q$21:$T$29,4,FALSE)<2,1,(B73-VLOOKUP(A73,費率!$Q$21:$T$29,4,FALSE)))/365)) -> 
Q74: =IF(C74="","",IF(E74<>"券買","",(F74*VLOOKUP(VLOOKUP(A74,費率!$Q$21:$T$29,4,FALSE),交易內容,7,FALSE)*IF(ISERROR(VLOOKUP(C74,上櫃代碼,1,FALSE)),上市融券成數,上櫃融券成數)+((F74/VLOOKUP(VLOOKUP(A74,費率!$Q$21:$T$29,4,FALSE),交易內容,6,FALSE))*VLOOKUP(VLOOKUP(A74,費率!$Q$21:$T$29,4,FALSE),交易內容,18,FALSE)))*擔保金保證金利率*IF(B74-VLOOKUP(A74,費率!$Q$21:$T$29,4,FALSE)<2,1,(B74-VLOOKUP(A74,費率!$Q$21:$T$29,4,FALSE)))/365)) -> 
Q75: =IF(C75="","",IF(E75<>"券買","",(F75*VLOOKUP(VLOOKUP(A75,費率!$Q$21:$T$29,4,FALSE),交易內容,7,FALSE)*IF(ISERROR(VLOOKUP(C75,上櫃代碼,1,FALSE)),上市融券成數,上櫃融券成數)+((F75/VLOOKUP(VLOOKUP(A75,費率!$Q$21:$T$29,4,FALSE),交易內容,6,FALSE))*VLOOKUP(VLOOKUP(A75,費率!$Q$21:$T$29,4,FALSE),交易內容,18,FALSE)))*擔保金保證金利率*IF(B75-VLOOKUP(A75,費率!$Q$21:$T$29,4,FALSE)<2,1,(B75-VLOOKUP(A75,費率!$Q$21:$T$29,4,FALSE)))/365)) -> 
Q76: =IF(C76="","",IF(E76<>"券買","",(F76*VLOOKUP(VLOOKUP(A76,費率!$Q$21:$T$29,4,FALSE),交易內容,7,FALSE)*IF(ISERROR(VLOOKUP(C76,上櫃代碼,1,FALSE)),上市融券成數,上櫃融券成數)+((F76/VLOOKUP(VLOOKUP(A76,費率!$Q$21:$T$29,4,FALSE),交易內容,6,FALSE))*VLOOKUP(VLOOKUP(A76,費率!$Q$21:$T$29,4,FALSE),交易內容,18,FALSE)))*擔保金保證金利率*IF(B76-VLOOKUP(A76,費率!$Q$21:$T$29,4,FALSE)<2,1,(B76-VLOOKUP(A76,費率!$Q$21:$T$29,4,FALSE)))/365)) -> 
Q77: =IF(C77="","",IF(E77<>"券買","",(F77*VLOOKUP(VLOOKUP(A77,費率!$Q$21:$T$29,4,FALSE),交易內容,7,FALSE)*IF(ISERROR(VLOOKUP(C77,上櫃代碼,1,FALSE)),上市融券成數,上櫃融券成數)+((F77/VLOOKUP(VLOOKUP(A77,費率!$Q$21:$T$29,4,FALSE),交易內容,6,FALSE))*VLOOKUP(VLOOKUP(A77,費率!$Q$21:$T$29,4,FALSE),交易內容,18,FALSE)))*擔保金保證金利率*IF(B77-VLOOKUP(A77,費率!$Q$21:$T$29,4,FALSE)<2,1,(B77-VLOOKUP(A77,費率!$Q$21:$T$29,4,FALSE)))/365)) -> 
Q78: =IF(C78="","",IF(E78<>"券買","",(F78*VLOOKUP(VLOOKUP(A78,費率!$Q$21:$T$29,4,FALSE),交易內容,7,FALSE)*IF(ISERROR(VLOOKUP(C78,上櫃代碼,1,FALSE)),上市融券成數,上櫃融券成數)+((F78/VLOOKUP(VLOOKUP(A78,費率!$Q$21:$T$29,4,FALSE),交易內容,6,FALSE))*VLOOKUP(VLOOKUP(A78,費率!$Q$21:$T$29,4,FALSE),交易內容,18,FALSE)))*擔保金保證金利率*IF(B78-VLOOKUP(A78,費率!$Q$21:$T$29,4,FALSE)<2,1,(B78-VLOOKUP(A78,費率!$Q$21:$T$29,4,FALSE)))/365)) -> 
Q79: =IF(C79="","",IF(E79<>"券買","",(F79*VLOOKUP(VLOOKUP(A79,費率!$Q$21:$T$29,4,FALSE),交易內容,7,FALSE)*IF(ISERROR(VLOOKUP(C79,上櫃代碼,1,FALSE)),上市融券成數,上櫃融券成數)+((F79/VLOOKUP(VLOOKUP(A79,費率!$Q$21:$T$29,4,FALSE),交易內容,6,FALSE))*VLOOKUP(VLOOKUP(A79,費率!$Q$21:$T$29,4,FALSE),交易內容,18,FALSE)))*擔保金保證金利率*IF(B79-VLOOKUP(A79,費率!$Q$21:$T$29,4,FALSE)<2,1,(B79-VLOOKUP(A79,費率!$Q$21:$T$29,4,FALSE)))/365)) -> 
Q80: =IF(C80="","",IF(E80<>"券買","",(F80*VLOOKUP(VLOOKUP(A80,費率!$Q$21:$T$29,4,FALSE),交易內容,7,FALSE)*IF(ISERROR(VLOOKUP(C80,上櫃代碼,1,FALSE)),上市融券成數,上櫃融券成數)+((F80/VLOOKUP(VLOOKUP(A80,費率!$Q$21:$T$29,4,FALSE),交易內容,6,FALSE))*VLOOKUP(VLOOKUP(A80,費率!$Q$21:$T$29,4,FALSE),交易內容,18,FALSE)))*擔保金保證金利率*IF(B80-VLOOKUP(A80,費率!$Q$21:$T$29,4,FALSE)<2,1,(B80-VLOOKUP(A80,費率!$Q$21:$T$29,4,FALSE)))/365)) -> 

Sheet 損益彙算
K1: 結算日期 | L1: 2009-07-06
L2: .
E3: 資料
A4: 編號 | B4: 股票代號 | C4: 股票名稱 | D4: 買賣方式 | E4: 買入股數 | F4: 賣出股數 | G4: 買入總成本 | H4: 賣出淨額 | I4: 未平倉股數 | J4: 收盤股價 | K4: 持股市值 | L4: 損益小計
A5: 1101-1 | B5: 1101 | C5: 台 泥 | D5: 融資 | E5: 18000 | G5: 234333.45 | H5: 0 | I5: 18000 | J5: =IF(A5="","",VLOOKUP(B5,股票收盤資料區,5,0)) -> 32.2 | K5: =IF(A5="","",I5*J5) -> 579600 | L5: =IF(A5="","",IF(D5="普通",H5+K5*(1-券商手續費率-證券交易稅率)-G5,IF(D5="融資",H5+K5*(1-券商手續費率-證券交易稅率)-G5-I5/VLOOKUP(A5,交易內容,6,0)*VLOOKUP(A5,交易內容,14,0)*融資利率*IF($L$1-VLOOKUP(A5,交易內容,2,0)<2,1,$L$1-VLOOKUP(A5,交易內容,2,0))/365,H5-K5*(1+券商手續費率)-G5+I5/VLOOKUP(A5,交易內容,8,0)*(VLOOKUP(A5,交易內容,19,0)+VLOOKUP(A5,交易內容,20,0))*擔保品保證金利率*IF($L$1-VLOOKUP(A5,交易內容,2,0)<2,1,$L$1-VLOOKUP(A5,交易內容,2,0))/365))) -> 342166.1762
A6: 1104-1 | B6: 1104 | C6: 環 泥 | D6: 融券 | E6: 9000 | F6: 9000 | G6: 108151.0968 | H6: 89529.75 | I6: 0 | J6: 15 | K6: =IF(A6="","",I6*J6) -> 0 | L6: -18621.34677
A7: 1217-1 | B7: 1217 | C7: 愛之味 | D7: 融券 | F7: 5000 | G7: 0 | H7: 39791 | I7: 5000 | J7: 11.95 | K7: 59750 | L7: -20017.98028
A8: 2002-1 | B8: 2002 | C8: 中 鋼 | D8: 融券 | E8: 5000 | F8: 10000 | G8: 125149.1583 | H8: 308380.25 | I8: 5000 | J8: 28.4 | K8: 142000 | L8: 41125.29735
A9: 2301-0 | B9: 2301 | C9: 光寶科 | D9: 普通 | E9: 17000 | F9: 1000 | G9: 525748.125 | H9: 31858.4 | I9: 16000 | J9: 29.25 | K9: 468000 | L9: -27960.625
A10: 2303-0 | B10: 2303 | C10: 聯 電 | D10: 普通 | E10: 10000 | F10: 5000 | G10: 220313.5 | H10: 99557.5 | I10: 5000 | J10: 10.95 | K10: 54750 | L10: -66248.26875
A11: 2303-1 | B11: 2303 | C11: 聯 電 | D11: 融券 | E11: 5000 | F11: 9000 | G11: 90109.56181 | H11: 179059.5 | I11: 4000 | J11: 10.95 | K11: 43800 | L11: 45124.89958
A12: 2330-0 | B12: 2330 | C12: 台積電 | D12: 普通 | E12: 3000 | G12: 129183.825 | H12: 0 | I12: 3000 | J12: 54.4 | K12: 163200 | L12: 33294.015
A13: 2330-1 | B13: 2330 | C13: 台積電 | D13: 融資 | E13: 23000 | F13: 23000 | G13: 921311 | H13: 964397.3476 | I13: 0 | J13: 54.4 | K13: 0 | L13: 43086.3476
A14: 2330-2 | B14: 2330 | C14: 台積電 | D14: 融資 | E14: 13000 | F14: 13000 | G14: 546778.05 | H14: 549936.0341 | I14: 0 | J14: 54.4 | K14: 0 | L14: 3157.984075
A15: 2356-0 | B15: 2356 | C15: 英業達 | D15: 普通 | E15: 21000 | F15: 3000 | G15: 357508.725 | H15: 53761.05 | I15: 18000 | J15: 19.9 | K15: 358200 | L15: 52867.29
A16: 2801-1 | B16: 2801 | C16: 彰 銀 | D16: 融資 | E16: 14000 | F16: 14000 | G16: 238339.15 | H16: 348399.5075 | I16: 0 | J16: 14.95 | K16: 0 | L16: 110060.3575
A17: 2801-2 | B17: 2801 | C17: 彰 銀 | D17: 融資 | E17: 15000 | G17: 255363.375 | H17: 0 | I17: 15000 | J17: 14.95 | K17: 224250 | L17: -32997.69221
A18: 5301-0 | B18: 5301 | C18: 祥裕電 | D18: 普通 | E18: 8000 | G18: 56079.8 | H18: 0 | I18: 8000 | J18: =IF(A18="","",VLOOKUP(B18,股票收盤資料區,5,0)) -> 3.13 | K18: 25040 | L18: -31150.602
K19: =IF(A19="","",I19*J19) -> 
J30: =IF(LEN(A30)>2,VLOOKUP(B30,股票收盤資料區,5,0),IF(AND(A30="",J29>0),J29,"")) ->  | K30: 損益彙總 | L30: =SUM(L5:L29) -> 473885.8523
K31: 總報酬率 | L31: =L30/交易紀錄!T51 -> 0.1739669061
